Cogmind - Beta 14 @@@ ROGUE MODE // 2024.09.01 @ 12:22:10 Player: JohnnyDongs Result: Destroyed by as-03904 with Assembled Blade Performance ------------- Evolutions (0) 0 Regions Visited (2) 400 Robots Destroyed (19) 95 Value Destroyed (292) 292 Prototype IDs (0) 0 Alien Tech Used (0) 0 Bonus (0) 0 TOTAL SCORE: 787 Bonus ------- None Cogmind --------- Core Integrity 0/250 Matter 172/300 Energy 60/100 System Corruption 0% Temperature Cool (0) Movement Rolling (95) Ox1 Location -10/Mines Parts ------- > --- POWER (1) -------- (None) > --- PROPULSION (2) --- Wheel > --- UTILITY (2) ------ Medium Storage Unit Structural Scanner > --- WEAPON (2) ------- Light Cannon Light Cannon > --- INVENTORY (10) --- Large Matter Pod (33) Hacking Suite Medium Laser Medium Laser Light Cannon Light Cannon Mining Laser Peak State ------------ > --- POWER ------------ Ion Engine > --- PROPULSION ------- Light Treads Light Treads > --- UTILITY ---------- Medium Storage Unit Improved Terrain Scanner > --- WEAPON ----------- Medium Laser Light Cannon > --- INVENTORY -------- Wheel Large Battery Large Matter Pod Light Cannon Light Cannon Light Cannon Light Cannon Light Cannon Grenade Launcher Mining Laser [Rating: 10] Favorites ----------- Power Ion Engine Engine Ion Engine Propulsion Light Treads Treads Light Treads Wheel Wheel Utility Medium Storage Unit Device Seismic Detector Storage Medium Storage Unit Weapon Medium Laser Energy Gun Medium Laser Ballistic Gun Assault Rifle Ballistic Cannon Light Cannon Launcher Grenade Launcher Special Weapon Mining Laser Build | -11 -10 -10 ------- Run | Yrd Mat Min Slots Evolved . | . . . Power . | . . . Propulsion . | . . . Utility . | . . . Weapon . | . . . Parts Attached 24 | 8 10 6 Power 2 | 1 . 1 Engine 2 | 1 . 1 Core . | . . . Reactor . | . . . Propulsion 3 | 2 . 1 Treads 2 | 2 . . Leg . | . . . Wheel 1 | . . 1 Hover . | . . . Flight . | . . . Utility 7 | 2 5 . Device 5 | 1 4 . Storage 2 | 1 1 . Processor . | . . . Hackware . | . . . Protection . | . . . Artifact . | . . . Weapon 12 | 3 5 4 Energy Gun 3 | 1 1 1 Energy Cannon . | . . . Ballistic Gun 2 | 2 . . Ballistic Cannon 4 | . 2 2 Launcher 2 | . 1 1 Special Weapon 1 | . 1 . Impact Weapon . | . . . Slashing Weapon . | . . . Piercing Weapon . | . . . Special Melee Weapon . | . . . Unidentified Prototypes . | . . . Parts Lost 5 | . 1 4 Power 1 | . . 1 Propulsion 2 | . . 2 Utility 1 | . 1 . Weapon 1 | . . 1 Highest Loss Streak 4 | . 1 4 To Critical Strikes . | . . . Average Slot Usage (%) 98 | . 99 95 Engine 13 | . 14 13 Treads 27 | . 28 25 Device 13 | . 13 14 Storage 14 | . 14 14 Energy Gun 13 | . 13 11 Ballistic Gun 7 | . 8 . Ballistic Cannon 6 | . 5 12 Peak Build Rating 10 | 7 10 10 Average Rating 7 | 5 7 8 On Entrance 5 | . 7 8 Naked Turns . | . . . Heaviest Build 24 | 15 21 24 Greatest Support 40 | 40 40 40 Greatest Overweight (x) . | . . . Average Overweight (x) . | . . . Largest Inventory Capacity 10 | 8 10 10 Average Capacity 9 | 7 9 10 Most Carried 10 | 7 10 10 Average Carried 7 | 2 8 9 Final Capacity 10 | 8 10 10 Final Carried 10 | 7 10 7 Class Distribution -------------------- 100% | Mutant Dominant Class ---------------- Mutant | -10/Materials Mutant | -10/Mines Resources | -11 -10 -10 ----------- Run | Yrd Mat Min Matter Collected 561 | 315 143 103 Remotely . | . . . Salvage Created 506 | 154 150 202 Parts 43 | 9 23 11 Haulers Intercepted 1 | . 1 . Recyclers Shooed 1 | . . 1 Parts Field Recycled . | . . . Retrieved Matter . | . . . Parts Self-Destructed . | . . . Prevented . | . . . Kills | -11 -10 -10 ------- Run | Yrd Mat Min Combat Hostiles Destroyed 18 | . 7 11 Guns 3 | . 2 1 Cannons 2 | . 1 1 AOE 13 | . 4 9 Classes Destroyed 10 | 2 5 3 Builder 1 | . . 1 Tunneler 3 | 3 . . Hauler 1 | . 1 . Recycler 2 | 1 . 1 Operator 1 | . 1 . Watcher 2 | . 2 . Swarmer 6 | . 6 . Grunt 1 | . 1 . Sentry 2 | . . 2 Assembled 9 | . . 9 Best Kill Streak 11 | 4 3 11 Combat Bots Only 9 | . 3 9 Max Kills in Single Turn 3 | 1 3 3 Gunslinging . | . . . Exploded 3 | . 3 2 Melee . | . . . Uniques/NPCs Destroyed . | . . . Combat | -11 -10 -10 -------- Run | Yrd Mat Min Hostile Shots Fired 77 | . 34 43 Missed 16 | . 7 9 Damage Taken 990 | . 315 675 Core 253 | . 60 193 Absorbed by Shields . | . . . Core Remaining (%) 100 | 100 . . Volleys Fired 50 | 11 21 18 Largest 2 | 2 2 2 Hottest 100 | 70 100 85 Shots Fired 87 | 22 39 26 Gun 50 | 22 20 8 Cannon 25 | . 16 9 Launcher 10 | . 1 9 Special 2 | . 2 . Kinetic 40 | 13 18 9 Thermal 37 | 9 20 8 Explosive 10 | . 1 9 Electromagnetic . | . . . Robot Hit Streak 8 | 4 6 8 Robot Miss Streak 3 | 2 3 1 Penetration Max . | . . . Secondary Targets . | . . . Shots Hit Robots 56 | 14 21 21 Core Hits 47 | 5 11 31 Critical Kills . | . . . Critical Parts Destroyed . | . . . Critical Strikes 1 | 1 . . Burn 1 | 1 . . Melee Attacks . | . . . Impact . | . . . Slashing . | . . . Piercing . | . . . Sneak Attacks . | . . . Combat Hostiles . | . . . Follow-up Attacks . | . . . Damage Inflicted 1612 | 171 624 817 Guns 379 | 171 120 88 Cannons 306 | . 189 117 Explosions 927 | . 315 612 Melee . | . . . Ramming . | . . . Kinetic 420 | 98 205 117 Thermal 265 | 73 104 88 Explosive 927 | . 315 612 Electromagnetic . | . . . Impact . | . . . Slashing . | . . . Piercing . | . . . Highest Corruption . | . . . Average Corruption . | . . . Corruption Purged . | . . . Corruption Blocked . | . . . Overload Shots . | . . . Overflow Damage 11 | . . 11 Projectiles . | . . . Explosions 11 | . . 11 Melee . | . . . Knockbacks . | . . . Impact . | . . . Kinetic . | . . . Secondary . | . . . Self-Inflicted Damage 251 | . 88 163 Shots 8 | . 2 6 Rammed . | . . . Targets Rammed . | . . . Kicked . | . . . Crushed . | . . . Highest Temperature 249 | 81 204 249 Average Temperature 68 | 41 55 117 Received Heat Transfer 126 | . 36 90 Siege Activations . | . . . Robots Corrupted . | . . . Combat Hostiles . | . . . Parts Fried . | . . . Impact Corruptions . | . . . Robots Melted . | . . . Combat Hostiles . | . . . Parts Melted 3 | 2 . 1 Heat Transferred 851 | 296 296 259 Parts Sabotaged . | . . . Parts Stolen . | . . . Parts Stripped . | . . . Power Chain Reactions . | . . . Alert | -11 -10 -10 ------- Run | Yrd Mat Min Peak Influence 328 | 20 328 166 Initial 71 | . 13 71 Average 82 | 7 89 112 Maximum Alert Level 1 | . 1 . Low Security (%) 88 | 100 85 100 Level 1 11 | . 14 . Level 2 . | . . . Level 3 . | . . . Level 4 . | . . . Level 5 . | . . . High Security . | . . . Max Security . | . . . Squads Dispatched 1 | . 1 . Investigation . | . . . Extermination . | . . . Reinforcement 1 | . 1 . Assault . | . . . Garrison . | . . . Intercept . | . . . Searches Triggered . | . . . Construction Impeded . | . . . Haulers Reinforced . | . . . Active Scanning Responses . | . . . Cargo Convoy Interrupts . | . . . Stealth | -11 -10 -10 --------- Run | Yrd Mat Min Distress Signals 1 | . 1 . Communications Jammed . | . . . Distress Signals . | . . . Times Spotted 26 | . 13 13 Peak Tracking Total 6 | . 4 6 Tactical Retreats 2 | . 1 1 Traps | -11 -10 -10 ------- Run | Yrd Mat Min Traps Triggered . | . . . Indirectly . | . . . Trap Hack Attempts . | . . . Triggered . | . . . Disarmed . | . . . Reprogrammed . | . . . Reused . | . . . Traps Extracted . | . . . Installed . | . . . Triggered . | . . . Machines | -11 -10 -10 ---------- Run | Yrd Mat Min Machines Disabled 2 | . 2 . Max in Single Turn 2 | . 2 . Machines Repaired . | . . . Machines Dismantled . | . . . Machines Sabotaged . | . . . Overloaded Fab Kills . | . . . Hacking | -11 -10 -10 --------- Run | Yrd Mat Min Machines Accessed 4 | . 4 . Terminals 3 | . 3 . Fabricators . | . . . Repair Stations 1 | . 1 . Recycling Units . | . . . Scanalyzers . | . . . Garrison Access . | . . . Total Hacks 12 | . 12 . Successful 7 | . 7 . Failed 5 | . 5 . Catastrophic 1 | . 1 . Database Lockouts . | . . . Manual 6 | . 6 . Terminals 11 | . 11 . Fabricators . | . . . Repair Stations 1 | . 1 . Recycling Units . | . . . Scanalyzers . | . . . Garrison Access . | . . . Terminal Hacks 6 | . 6 . Robot Analysis 3 | . 3 . Locate Traps 2 | . 2 . Hauler Manifests 1 | . 1 . Fabricator Hacks . | . . . Repair Station Hacks . | . . . Recycling Unit Hacks . | . . . Scanalyzer . | . . . Garrison Access Hacks . | . . . Unauthorized Hacks 1 | . 1 . Terminals . | . . . Fabricators . | . . . Repair Stations 1 | . 1 . Mechanics 1 | . 1 . Recycling Units . | . . . Scanalyzers . | . . . Garrison Access . | . . . Data Cores Recovered . | . . . Used . | . . . Hacking Detections 4 | . 4 . Full Trace Events 2 | . 2 . Feedback Events . | . . . Feedback Blocked . | . . . Robot Schematics Acquired . | . . . Robots Built . | . . . Authchips . | . . . Time . | . . . Total Robot Build Rating . | . . . Part Schematics Acquired . | . . . Parts Built . | . . . Authchips . | . . . Time . | . . . Total Part Build Rating . | . . . Parts Repaired . | . . . Time . | . . . Parts Recycled . | . . . Recycled Matter . | . . . Retrieved Matter . | . . . Retrieved Components . | . . . Parts Scanalyzed . | . . . Part Schematics Acquired . | . . . Parts Damaged . | . . . Bothacking | -11 -10 -10 ------------ Run | Yrd Mat Min Used RIF Installer . | . . . Robots Hacked . | . . . Non-combat . | . . . Combat . | . . . Robot Hacks Applied . | . . . Relay Couplers Released . | . . . Fabnet Peak Effective % . | . . . Robots Rewired . | . . . Allies Hacked . | . . . Hacks Repelled . | . . . Allies | -11 -10 -10 -------- Run | Yrd Mat Min Total Allies . | . . . Largest Group . | . . . Highest-Rated Group . | . . . Highest-Rated Ally . | . . . Total Orders . | . . . Ally Attacks . | . . . Total Damage . | . . . Kills . | . . . Allies Corrupted . | . . . Allies Melted . | . . . Intel | -11 -10 -10 ------- Run | Yrd Mat Min Robot Analysis Total 3 | . 3 . Derelict Logs Recovered . | . . . Drone Launches . | . . . Drone Recoveries . | . . . Exploration | -11 -10 -10 ------------- Run | Yrd Mat Min Turns Passed 1132 | 132 844 156 Spaces Moved 436 | 54 317 65 Core 4 | 4 . . Treads 432 | 50 317 65 Legs . | . . . Wheels . | . . . Hover . | . . . Flight . | . . . Fastest Speed 50 | 50 160 160 Average Speed 158 | 151 160 160 Slowest Speed 160 | 160 160 160 Overloaded Moves . | . . . Propulsion Burnouts . | . . . Robots Hopped . | . . . Cave-ins Triggered . | . . . Exploration Rate (%) 23 | 4 42 25 Regions Visited 2 Branch Regions 1 Pre-discovered Areas . | . . . Known Exits Taken . | . . . Unknown Exits Taken 2 | 1 1 . Scrap Searched . | . . . Spaces Dug 2 | . 2 . Terrain Destroyed 105 | . 43 62 Melee . | . . . Projectile 2 | . 2 . AOE 103 | . 41 62 Terrain Rammed . | . . . Walls Destroyed . | . . . Machines Disabled . | . . . Actions | -11 -10 -10 --------- Run | Yrd Mat Min Total 783 | 79 613 91 Wait 239 | . 239 . Move 434 | 53 316 65 Hop . | . . . Pick Up 20 | 6 14 . Fast Attach 11 | 8 2 1 Attach 4 | . 1 3 Detach 1 | 1 . . Swap 9 | . 7 2 Drop 15 | . 13 2 Fire 50 | 11 21 18 Melee . | . . . Ram . | . . . Kick . | . . . Crush . | . . . Escape Stasis . | . . . Rewire . | . . . Trap . | . . . Miscellaneous . | . . . Route ------- -11/Scrapyard -10/Materials (discovered 2 exits: [*Mat] / [*Min]) -10/Mines History --------- Turn | Location | Event 31 | -11/Scrapyard | Discovered new exit (range 16) 133 | -11/Scrapyard | Entered Materials 314 | -10/Materials | Build established: Mutant 663 | -10/Materials | Discovered new exit (range 10) 831 | -10/Materials | Discovered new exit (range 16) 977 | -10/Materials | Entered Mines 984 | -10/Mines | Met a Derelict bent on vengeance 1078 | -10/Mines | Assembled infested the area 1091 | -10/Mines | Core integrity fell below 50% 1127 | -10/Mines | Core integrity fell below 20% 1133 | -10/Mines | Destroyed by as-03904 with Assembled Blade Last Messages --------------- 01113_ as-96537 destroyed. 01114_ R-06 Scavenger collects Med. Laser. 01115_ as-05950 destroyed. 01115_ U-05 Engineer destroyed. 01115_ R-06 Scavenger destroyed. 01118_ Lgt. Treads destroyed. 01118_ R-06 Scavenger collects Beam Rifle. 01119_ The unstable cave ceiling collapses. 01119_ Beam Rifle severed. 01121_ R-06 Scavenger collects Ion Engine. 01121_ as-72191 destroyed. 01122_ The unstable cave ceiling collapses. 01125_ as-13125 destroyed. 01125_ Imp. Ion Engine destroyed. 01125_ Destroyed Imp. Ion Engine. 01125_ Grenade Launcher destroyed. 01125_ Destroyed Grenade Launcher. 01125_ Lgt. Treads destroyed. 01125_ Destroyed Lgt. Treads. 01125_ as-76598 destroyed. Map ----- +----------------------------------------------------+ | ??????????????????????????????????? | | ??????????????????????????????????? | | ??????????????????????????????????? | | ??????????????????????????????????? | | ??????????????????????????????????? | | ??????????????????????????????????? | | ## ???????????????????????????????? | | ## ???????????????????????????????? | | ## ???????????????????????????????? | | ## ???????????????????????????????? | | # ???????????????????????????????? | | # ???????????????????????????????? | | # ???????????????????????????????? | | # ####???????????????????????????? | | # ####???????????????????????????? | | # ##?????????? ##??????????????? | | # ###????????? ####????????????? | | ### #####?????? ####???????????? | | # ######??? ###???? ##????? | | # ###### ##?## ##????? | | # a ##### ##### ????? | | # # #### ###???? | | ## ## ###???? | | ### #% ##???? | | ######## a % ##???? | | ?#####" # @ ##???? | | ???##"" # ###??? | | ???##!/ = ####?? | | ???##[! %|=### ###?? | | ???##"" # =!= ## ##?? | | ???###" ## ##?? | | ???######## ###?? | | ????####### #### # ###??? | | ?????????### ##### ##? ######???? | | ?????????########## ##?#######???? | | ??????????######### ##???????????? | | ??????????### ### ##???????????? | | ?????????### ##???????????? | | ????######## ##???????????? | | ???######## ## ####???????????? | | ???### ### ####???????????? | | ???## ### ##?????????????? | | ???## """ ### ##?????????????? | | ???### """ ### ?????????????? | | ???### """ ##?????????????? | | ????## ### ##?????????????? | | ????## #### ##?????????????? | | ????## ##### ##?????????????? | | ????### ###### ???????????????? | | ????### ####??? ???????????????? | +----------------------------------------------------+ Best States ------------- Heat Dissipation 25 Energy Generation 12 Energy Capacity 265 Matter Stores 300 Matter Capacity 300 Sight Range 16 Terrain Scan Range 16 Terrain Scan Density 10 Evasion (%) 40 Recoil Reduction 2 Item Schematics ----------------- None Robot Schematics ------------------ None Fabricated ------------ Nothing Alien Tech Used ----------------- None Achievements -------------- None Challenges ------------ None Game ------ Seed ResetConcussiveBlaster Manual? 0 Play Time 00:21:12 Cumulative 48.2 hours Start 2024.09.01 @ 01:08:35 End 2024.09.01 @ 12:22:10 Sessions 2 Manual Loads 0 Difficulty Rogue Special Mode None Game No. 31 Rogue 31 Adventurer 0 Explorer 0 Win Type - Total 0 Types 0/0/0/0/0/0/0/0/0 Lore% 17 Gallery% 36 Achievement% 36 Wizard Run 0 Options --------- Layout 1 ASCII 0 Keyboard 0 Movement Numpad Keybinds 0 Fullscreen 1 Font 24/Smallcaps Map View 50x35 Zoom Use 0% Tactical HUD 1 Map Filters NONE Filters NONE Steam 1 RUN: 92b4dd6b-323c-4adc-82c2-08ce4f72429a